[Event "Titled Tuesday Blitz March 14 Early 2023"]
[White "aidenzhouu"]
[Black "Jaskolka, Tomasz"]
[BlackFideId "1170791"]
[WhiteElo "2418"]
[BlackElo "2155"]
[Result "1-0"]
[Round "07"]
[TimeControl "180+2"]
[Date "2023.03.14"]
[WhiteClock "0:00:05"]
[BlackClock "0:00:15"]

1. d4 {[%clk 0:03:00]}  d5 {[%clk 0:02:59]} 2. c4 {[%clk 0:03:01]}  e5 {[%clk 0:03:00]} 3. dxe5 {[%clk 0:02:59]}  d4 {[%clk 0:03:01]} 4. Nf3 {[%clk 0:02:59]}  Nc6 {[%clk 0:03:01]} 5. a3 {[%clk 0:02:55]}  a5 {[%clk 0:02:54]} 6. g3 {[%clk 0:02:47]}  Be6 {[%clk 0:02:52]} 7. Nbd2 {[%clk 0:02:40]}  Qd7 {[%clk 0:02:48]} 8. Bg2 {[%clk 0:02:36]}  Nge7 {[%clk 0:02:47]} 9. O-O {[%clk 0:02:17]}  Ng6 {[%clk 0:02:44]} 10. b3 {[%clk 0:02:13]}  h5 {[%clk 0:02:36]} 11. Ne4 {[%clk 0:01:39]}  h4 {[%clk 0:02:16]} 12. Bb2 {[%clk 0:01:29]}  Rd8 {[%clk 0:02:09]} 13. Qd2 {[%clk 0:00:53]}  Be7 {[%clk 0:02:08]} 14. Rad1 {[%clk 0:00:44]}  Bh3 {[%clk 0:01:47]} 15. Bxh3 {[%clk 0:00:31]}  Qxh3 {[%clk 0:01:46]} 16. Neg5 {[%clk 0:00:31]}  Qf5 {[%clk 0:01:28]} 17. Qd3 {[%clk 0:00:24]}  Qxd3 {[%clk 0:01:27]} 18. Rxd3 {[%clk 0:00:16]}  hxg3 {[%clk 0:01:07]} 19. hxg3 {[%clk 0:00:10]}  Ngxe5 {[%clk 0:00:58]} 20. Rd2 {[%clk 0:00:10]}  Bf6 {[%clk 0:00:54]} 21. Nxe5 {[%clk 0:00:09]}  Nxe5 {[%clk 0:00:43]} 22. Ne4 {[%clk 0:00:08]}  b6 {[%clk 0:00:28]} 23. Nxf6+ {[%clk 0:00:08]}  gxf6 {[%clk 0:00:29]} 24. Rxd4 {[%clk 0:00:08]}  Ke7 {[%clk 0:00:23]} 25. Rfd1 {[%clk 0:00:08]}  Rdg8 {[%clk 0:00:22]} 26. R4d2 {[%clk 0:00:06]}  Ng4 {[%clk 0:00:21]} 27. Rd7+ {[%clk 0:00:06]}  Ke6 {[%clk 0:00:20]} 28. f3 {[%clk 0:00:04]}  Ne3 {[%clk 0:00:18]} 29. R1d3 {[%clk 0:00:04]}  Nf5 {[%clk 0:00:17]} 30. Rxc7 {[%clk 0:00:04]}  Rxg3+ {[%clk 0:00:17]} 31. Kf2 {[%clk 0:00:05]}  Rh2+ {[%clk 0:00:17]} 32. Ke1 {[%clk 0:00:05]}  Rgg2 {[%clk 0:00:16]} 33. Rc6+ {[%clk 0:00:05]}  Ke7 {[%clk 0:00:16]} 34. Bxf6+ {[%clk 0:00:05]}  Ke8 {[%clk 0:00:15]} 35. Rc8# {[%clk 0:00:05]} 1-0


[Site "https://www.chess.com"]

[Event "Titled Tuesday Blitz March 14 Early 2023"]
[White "Bas Mas, Jose Joaquin"]
[Black "Ginzburg, Yakov"]
[WhiteFideId "22219064"]
[BlackFideId "4157176"]
[WhiteElo "2233"]
[BlackElo "2305"]
[Result "0-1"]
[Round "07"]
[TimeControl "180+2"]
[Date "2023.03.14"]
[WhiteClock "0:01:03"]
[BlackClock "0:00:54"]

1. e4 {[%clk 0:03:00]}  c5 {[%clk 0:02:58]} 2. Nc3 {[%clk 0:02:59]}  e6 {[%clk 0:02:57]} 3. Nf3 {[%clk 0:02:57]}  Nc6 {[%clk 0:02:57]} 4. g3 {[%clk 0:02:55]}  d5 {[%clk 0:02:55]} 5. exd5 {[%clk 0:02:54]}  exd5 {[%clk 0:02:56]} 6. d4 {[%clk 0:02:54]}  Bg4 {[%clk 0:02:52]} 7. Bg2 {[%clk 0:02:52]}  Nxd4 {[%clk 0:02:52]} 8. O-O {[%clk 0:02:51]}  Nf6 {[%clk 0:02:50]} 9. Qe1+ {[%clk 0:02:48]}  Be7 {[%clk 0:02:48]} 10. Ne5 {[%clk 0:02:37]}  Be6 {[%clk 0:02:46]} 11. Qd1 {[%clk 0:02:29]}  O-O {[%clk 0:02:44]} 12. Bf4 {[%clk 0:02:16]}  Re8 {[%clk 0:02:08]} 13. Re1 {[%clk 0:02:13]}  Qb6 {[%clk 0:02:08]} 14. Na4 {[%clk 0:02:07]}  Qa5 {[%clk 0:02:06]} 15. c3 {[%clk 0:02:07]}  Nc6 {[%clk 0:02:00]} 16. a3 {[%clk 0:02:00]}  Nxe5 {[%clk 0:01:58]} 17. Bxe5 {[%clk 0:01:59]}  Rad8 {[%clk 0:01:58]} 18. b4 {[%clk 0:01:57]}  Qb5 {[%clk 0:01:57]} 19. Bf1 {[%clk 0:01:52]}  Qc6 {[%clk 0:01:43]} 20. b5 {[%clk 0:01:52]}  Qc8 {[%clk 0:01:40]} 21. b6 {[%clk 0:01:52]}  a6 {[%clk 0:01:40]} 22. Rb1 {[%clk 0:01:52]}  Bf5 {[%clk 0:01:32]} 23. Rb2 {[%clk 0:01:41]}  Qc6 {[%clk 0:01:28]} 24. Bc7 {[%clk 0:01:36]}  Rc8 {[%clk 0:01:21]} 25. Bg2 {[%clk 0:01:35]}  Bg4 {[%clk 0:01:04]} 26. Qc2 {[%clk 0:01:28]}  Bd7 {[%clk 0:01:03]} 27. c4 {[%clk 0:01:07]}  Qxa4 {[%clk 0:01:03]} 28. cxd5 {[%clk 0:01:02]}  Qxc2 {[%clk 0:00:59]} 29. Rxc2 {[%clk 0:01:03]}  Bd6 {[%clk 0:00:54]} 0-1


[Site "https://www.chess.com"]

[Event "Titled Tuesday Blitz March 14 Early 2023"]
[White "Fernandez Siles, Luis"]
[Black "Escalona Landi, Samid Eduardo"]
[WhiteFideId "2209420"]
[BlackFideId "3937437"]
[WhiteElo "2186"]
[BlackElo "2207"]
[Result "0-1"]
[Round "07"]
[TimeControl "180+2"]
[Date "2023.03.14"]
[WhiteClock "0:01:40"]
[BlackClock "0:02:01"]

1. d4 {[%clk 0:03:00]}  Nf6 {[%clk 0:02:55]} 2. c4 {[%clk 0:03:00]}  g6 {[%clk 0:02:55]} 3. Nc3 {[%clk 0:03:00]}  Bg7 {[%clk 0:02:55]} 4. e4 {[%clk 0:03:00]}  d6 {[%clk 0:02:56]} 5. Nf3 {[%clk 0:03:01]}  O-O {[%clk 0:02:56]} 6. Be2 {[%clk 0:03:01]}  Nbd7 {[%clk 0:02:57]} 7. O-O {[%clk 0:03:01]}  e5 {[%clk 0:02:58]} 8. h3 {[%clk 0:02:58]}  exd4 {[%clk 0:02:54]} 9. Nxd4 {[%clk 0:02:58]}  Re8 {[%clk 0:02:54]} 10. f3 {[%clk 0:02:49]}  c6 {[%clk 0:02:54]} 11. Bg5 {[%clk 0:02:46]}  Qb6 {[%clk 0:02:49]} 12. Na4 {[%clk 0:02:43]}  Qc7 {[%clk 0:02:47]} 13. Nc3 {[%clk 0:02:23]}  Qb6 {[%clk 0:02:47]} 14. Na4 {[%clk 0:02:23]}  Qa5 {[%clk 0:02:47]} 15. Be3 {[%clk 0:02:21]}  Nh5 {[%clk 0:02:45]} 16. a3 {[%clk 0:02:17]}  f5 {[%clk 0:02:40]} 17. b4 {[%clk 0:02:17]}  Qc7 {[%clk 0:02:40]} 18. c5 {[%clk 0:02:02]}  d5 {[%clk 0:02:19]} 19. g4 {[%clk 0:01:53]}  Qg3+ {[%clk 0:02:11]} 20. Kh1 {[%clk 0:01:52]}  Qxh3+ {[%clk 0:02:11]} 21. Kg1 {[%clk 0:01:52]}  Qg3+ {[%clk 0:02:07]} 22. Kh1 {[%clk 0:01:52]}  Qh3+ {[%clk 0:02:05]} 23. Kg1 {[%clk 0:01:52]}  Ng3 {[%clk 0:02:05]} 24. Bf2 {[%clk 0:01:40]}  Qh1# {[%clk 0:02:01]} 0-1


[Site "https://www.chess.com"]

[Event "Titled Tuesday Blitz March 14 Early 2023"]
[White "Wartiovaara, Oliver"]
[Black "Zaksaite, Salomeja"]
[WhiteFideId "513024"]
[BlackFideId "12801496"]
[WhiteElo "2214"]
[BlackElo "2059"]
[Result "1-0"]
[Round "07"]
[TimeControl "180+2"]
[Date "2023.03.14"]
[WhiteClock "0:02:19"]
[BlackClock "0:02:41"]

1. e4 {[%clk 0:02:58]}  c5 {[%clk 0:02:58]} 2. c3 {[%clk 0:02:57]}  Nf6 {[%clk 0:02:58]} 3. e5 {[%clk 0:02:57]}  Nd5 {[%clk 0:02:58]} 4. Nf3 {[%clk 0:02:54]}  e6 {[%clk 0:02:53]} 5. d4 {[%clk 0:02:54]}  cxd4 {[%clk 0:02:53]} 6. cxd4 {[%clk 0:02:54]}  d6 {[%clk 0:02:54]} 7. Bc4 {[%clk 0:02:53]}  dxe5 {[%clk 0:02:53]} 8. dxe5 {[%clk 0:02:53]}  Nb6 {[%clk 0:02:53]} 9. Qxd8+ {[%clk 0:02:50]}  Kxd8 {[%clk 0:02:53]} 10. Bb3 {[%clk 0:02:46]}  Nc6 {[%clk 0:02:52]} 11. O-O {[%clk 0:02:39]}  Bd7 {[%clk 0:02:49]} 12. Rd1 {[%clk 0:02:33]}  Kc7 {[%clk 0:02:47]} 13. Nc3 {[%clk 0:02:23]}  a6 {[%clk 0:02:48]} 14. Be3 {[%clk 0:02:20]}  Be7 {[%clk 0:02:41]} 15. Bxb6+ {[%clk 0:02:19]} 1-0


[Site "https://www.chess.com"]

[Event "Titled Tuesday Blitz March 14 Early 2023"]
[White "Fajdetic, Hrvoje"]
[Black "Shubenkova, Veronika"]
[WhiteFideId "14501945"]
[BlackFideId "44124040"]
[WhiteElo "2185"]
[BlackElo "2027"]
[Result "0-1"]
[Round "07"]
[TimeControl "180+2"]
[Date "2023.03.14"]
[WhiteClock "0:00:10"]
[BlackClock "0:00:21"]

1. f4 {[%clk 0:02:55]}  d5 {[%clk 0:02:59]} 2. Nf3 {[%clk 0:02:54]}  Nf6 {[%clk 0:02:59]} 3. e3 {[%clk 0:02:54]}  g6 {[%clk 0:02:59]} 4. d4 {[%clk 0:02:52]}  Bg7 {[%clk 0:02:59]} 5. Bd3 {[%clk 0:02:51]}  Bg4 {[%clk 0:02:58]} 6. O-O {[%clk 0:02:51]}  Bxf3 {[%clk 0:02:58]} 7. Qxf3 {[%clk 0:02:52]}  c6 {[%clk 0:02:57]} 8. Nd2 {[%clk 0:02:51]}  Nbd7 {[%clk 0:02:57]} 9. c3 {[%clk 0:02:51]}  O-O {[%clk 0:02:56]} 10. e4 {[%clk 0:02:51]}  dxe4 {[%clk 0:02:56]} 11. Nxe4 {[%clk 0:02:52]}  Nxe4 {[%clk 0:02:57]} 12. Bxe4 {[%clk 0:02:53]}  Nf6 {[%clk 0:02:57]} 13. f5 {[%clk 0:02:51]}  Nxe4 {[%clk 0:02:57]} 14. Qxe4 {[%clk 0:02:52]}  Qd5 {[%clk 0:02:54]} 15. Qg4 {[%clk 0:02:45]}  c5 {[%clk 0:02:51]} 16. dxc5 {[%clk 0:02:40]}  Qxc5+ {[%clk 0:02:51]} 17. Kh1 {[%clk 0:02:41]}  Rad8 {[%clk 0:02:51]} 18. fxg6 {[%clk 0:02:33]}  hxg6 {[%clk 0:02:38]} 19. Bg5 {[%clk 0:02:32]}  Rd5 {[%clk 0:02:37]} 20. h4 {[%clk 0:02:20]}  f5 {[%clk 0:02:20]} 21. Qf3 {[%clk 0:01:59]}  e5 {[%clk 0:02:18]} 22. h5 {[%clk 0:01:54]}  e4 {[%clk 0:02:13]} 23. Qh3 {[%clk 0:01:53]}  gxh5 {[%clk 0:02:08]} 24. Bf4 {[%clk 0:01:45]}  Qc6 {[%clk 0:01:46]} 25. Qxh5 {[%clk 0:01:39]}  Qe6 {[%clk 0:01:38]} 26. Rae1 {[%clk 0:01:11]}  Rf7 {[%clk 0:01:36]} 27. Re3 {[%clk 0:01:02]}  Rd3 {[%clk 0:01:30]} 28. Rfe1 {[%clk 0:00:53]}  Qd5 {[%clk 0:01:25]} 29. Qg6 {[%clk 0:00:27]}  Qd7 {[%clk 0:01:06]} 30. Be5 {[%clk 0:00:20]}  Kf8 {[%clk 0:00:34]} 31. Rxd3 {[%clk 0:00:18]}  exd3 {[%clk 0:00:27]} 32. Bxg7+ {[%clk 0:00:18]}  Rxg7 {[%clk 0:00:27]} 33. Qf6+ {[%clk 0:00:17]}  Kg8 {[%clk 0:00:26]} 34. Qd4 {[%clk 0:00:10]}  Qxd4 {[%clk 0:00:25]} 35. cxd4 {[%clk 0:00:11]}  Rd7 {[%clk 0:00:25]} 36. Kg1 {[%clk 0:00:10]}  Rxd4 {[%clk 0:00:25]} 37. Rd1 {[%clk 0:00:11]}  Kf7 {[%clk 0:00:24]} 38. Kf2 {[%clk 0:00:12]}  f4 {[%clk 0:00:24]} 39. Kf3 {[%clk 0:00:11]}  Kf6 {[%clk 0:00:23]} 40. Kg4 {[%clk 0:00:11]}  Ke5 {[%clk 0:00:22]} 41. Kg5 {[%clk 0:00:11]}  d2 {[%clk 0:00:21]} 42. Kg4 {[%clk 0:00:10]}  Ke4 {[%clk 0:00:21]} 43. g3 {[%clk 0:00:10]}  fxg3 {[%clk 0:00:20]} 44. Kxg3 {[%clk 0:00:10]}  Ke3 {[%clk 0:00:21]} 45. Kg2 {[%clk 0:00:10]}  Ke2 {[%clk 0:00:21]} 0-1


[Site "https://www.chess.com"]

[Event "Titled Tuesday Blitz March 14 Early 2023"]
[White "Fabris, Alberto"]
[Black "Staudenhocker43"]
[WhiteFideId "801348"]
[WhiteElo "2199"]
[BlackElo "2416"]
[Result "0-1"]
[Round "07"]
[TimeControl "180+2"]
[Date "2023.03.14"]
[WhiteClock "0:00:50"]
[BlackClock "0:01:23"]

1. e4 {[%clk 0:03:00]}  c5 {[%clk 0:02:59]} 2. Nf3 {[%clk 0:03:00]}  e6 {[%clk 0:02:59]} 3. d4 {[%clk 0:02:59]}  cxd4 {[%clk 0:03:00]} 4. Nxd4 {[%clk 0:02:59]}  Nc6 {[%clk 0:03:00]} 5. Nb5 {[%clk 0:02:57]}  d6 {[%clk 0:03:00]} 6. c4 {[%clk 0:02:56]}  Nf6 {[%clk 0:02:59]} 7. N1c3 {[%clk 0:02:54]}  a6 {[%clk 0:03:00]} 8. Na3 {[%clk 0:02:54]}  Be7 {[%clk 0:02:59]} 9. Be2 {[%clk 0:02:54]}  O-O {[%clk 0:03:00]} 10. O-O {[%clk 0:02:54]}  b6 {[%clk 0:03:00]} 11. Nc2 {[%clk 0:02:52]}  Bb7 {[%clk 0:03:00]} 12. Be3 {[%clk 0:02:46]}  Ne5 {[%clk 0:02:54]} 13. f3 {[%clk 0:02:37]}  Rc8 {[%clk 0:02:50]} 14. Qd4 {[%clk 0:02:21]}  Ned7 {[%clk 0:02:37]} 15. Rac1 {[%clk 0:02:15]}  Qc7 {[%clk 0:02:36]} 16. b3 {[%clk 0:02:10]}  Rfd8 {[%clk 0:02:35]} 17. Rfd1 {[%clk 0:02:09]}  Qb8 {[%clk 0:02:32]} 18. Ne1 {[%clk 0:02:01]}  h6 {[%clk 0:02:26]} 19. Qd2 {[%clk 0:02:00]}  Bc6 {[%clk 0:02:16]} 20. Bf1 {[%clk 0:01:55]}  b5 {[%clk 0:02:14]} 21. cxb5 {[%clk 0:01:54]}  axb5 {[%clk 0:02:15]} 22. Nc2 {[%clk 0:01:48]}  b4 {[%clk 0:02:09]} 23. Ne2 {[%clk 0:01:47]}  d5 {[%clk 0:02:08]} 24. Ncd4 {[%clk 0:01:30]}  Ba8 {[%clk 0:02:05]} 25. exd5 {[%clk 0:01:28]}  Nxd5 {[%clk 0:02:04]} 26. Bf2 {[%clk 0:01:26]}  Bg5 {[%clk 0:01:50]} 27. f4 {[%clk 0:01:24]}  Nxf4 {[%clk 0:01:48]} 28. Nxf4 {[%clk 0:01:23]}  Bxf4 {[%clk 0:01:47]} 29. Be3 {[%clk 0:01:21]}  Bxh2+ {[%clk 0:01:47]} 30. Kh1 {[%clk 0:01:20]}  Rxc1 {[%clk 0:01:43]} 31. Rxc1 {[%clk 0:01:18]}  Nf6 {[%clk 0:01:39]} 32. Qe2 {[%clk 0:01:07]}  Ne4 {[%clk 0:01:27]} 33. Bf2 {[%clk 0:00:50]}  Rxd4 {[%clk 0:01:23]} 0-1


[Site "https://www.chess.com"]

[Event "Titled Tuesday Blitz March 14 Early 2023"]
[White "Torres Dominguez, David"]
[Black "Shevtchenko, Olesya"]
[WhiteFideId "2220857"]
[BlackFideId "24131890"]
[WhiteElo "1999"]
[BlackElo "2003"]
[Result "1-0"]
[Round "07"]
[TimeControl "180+2"]
[Date "2023.03.14"]
[WhiteClock "0:00:08"]
[BlackClock "0:00:28"]

1. e4 {[%clk 0:02:57]}  c6 {[%clk 0:03:00]} 2. Nf3 {[%clk 0:02:56]}  d5 {[%clk 0:03:01]} 3. d3 {[%clk 0:02:57]}  Qc7 {[%clk 0:03:00]} 4. Be2 {[%clk 0:02:56]}  e5 {[%clk 0:03:00]} 5. O-O {[%clk 0:02:55]}  Nf6 {[%clk 0:03:00]} 6. Re1 {[%clk 0:02:50]}  Bc5 {[%clk 0:02:58]} 7. exd5 {[%clk 0:02:46]}  cxd5 {[%clk 0:02:57]} 8. d4 {[%clk 0:02:45]}  exd4 {[%clk 0:02:40]} 9. Bb5+ {[%clk 0:02:40]}  Kf8 {[%clk 0:02:40]} 10. Nxd4 {[%clk 0:02:29]}  Nc6 {[%clk 0:02:39]} 11. Be3 {[%clk 0:02:11]}  Ng4 {[%clk 0:02:33]} 12. g3 {[%clk 0:01:59]}  Nxe3 {[%clk 0:02:32]} 13. Rxe3 {[%clk 0:01:59]}  Bd7 {[%clk 0:02:08]} 14. Bxc6 {[%clk 0:01:54]}  bxc6 {[%clk 0:02:06]} 15. Nc3 {[%clk 0:01:51]}  g6 {[%clk 0:02:02]} 16. Rf3 {[%clk 0:01:22]}  Kg7 {[%clk 0:01:50]} 17. Nb3 {[%clk 0:01:19]}  Bd6 {[%clk 0:01:44]} 18. Qd2 {[%clk 0:01:12]}  Rae8 {[%clk 0:01:42]} 19. Re1 {[%clk 0:01:06]}  h5 {[%clk 0:01:40]} 20. Rfe3 {[%clk 0:01:03]}  h4 {[%clk 0:01:35]} 21. Qd4+ {[%clk 0:01:03]}  f6 {[%clk 0:01:29]} 22. Rxe8 {[%clk 0:01:00]}  Bxe8 {[%clk 0:01:29]} 23. Nc5 {[%clk 0:00:30]}  Bf7 {[%clk 0:01:28]} 24. Ne6+ {[%clk 0:00:23]}  Bxe6 {[%clk 0:01:28]} 25. Rxe6 {[%clk 0:00:23]}  Be5 {[%clk 0:01:23]} 26. Qc5 {[%clk 0:00:23]}  hxg3 {[%clk 0:01:23]} 27. Re7+ {[%clk 0:00:23]}  Kg8 {[%clk 0:01:13]} 28. Rxc7 {[%clk 0:00:22]}  gxh2+ {[%clk 0:01:10]} 29. Kh1 {[%clk 0:00:22]}  Bxc7 {[%clk 0:01:11]} 30. Nxd5 {[%clk 0:00:21]}  Be5 {[%clk 0:01:05]} 31. Qxc6 {[%clk 0:00:19]}  Kg7 {[%clk 0:00:54]} 32. Qd7+ {[%clk 0:00:18]}  Kh6 {[%clk 0:00:55]} 33. Qh3+ {[%clk 0:00:16]}  Kg7 {[%clk 0:00:54]} 34. Qd7+ {[%clk 0:00:16]}  Kh6 {[%clk 0:00:54]} 35. f4 {[%clk 0:00:16]}  Bxb2 {[%clk 0:00:52]} 36. Kxh2 {[%clk 0:00:14]}  Rh7 {[%clk 0:00:49]} 37. Qb5 {[%clk 0:00:10]}  Bc1 {[%clk 0:00:47]} 38. Kg2 {[%clk 0:00:09]}  Rf7 {[%clk 0:00:45]} 39. Qc4 {[%clk 0:00:09]}  Kg7 {[%clk 0:00:44]} 40. f5 {[%clk 0:00:09]}  gxf5 {[%clk 0:00:43]} 41. Qf1 {[%clk 0:00:09]}  Kg6 {[%clk 0:00:35]} 42. Qxc1 {[%clk 0:00:09]}  Rd7 {[%clk 0:00:34]} 43. Nf4+ {[%clk 0:00:09]}  Kf7 {[%clk 0:00:34]} 44. Qe3 {[%clk 0:00:10]}  Re7 {[%clk 0:00:32]} 45. Qb3+ {[%clk 0:00:10]}  Kg7 {[%clk 0:00:32]} 46. Nh5+ {[%clk 0:00:09]}  Kg6 {[%clk 0:00:33]} 47. Nf4+ {[%clk 0:00:10]}  Kg7 {[%clk 0:00:32]} 48. Qg3+ {[%clk 0:00:09]}  Kf7 {[%clk 0:00:32]} 49. Qg6+ {[%clk 0:00:09]}  Kf8 {[%clk 0:00:32]} 50. Qxf6+ {[%clk 0:00:09]}  Ke8 {[%clk 0:00:33]} 51. Nd5 {[%clk 0:00:08]}  Rf7 {[%clk 0:00:32]} 52. Qxf7+ {[%clk 0:00:07]}  Kxf7 {[%clk 0:00:32]} 53. Kf3 {[%clk 0:00:08]}  Ke6 {[%clk 0:00:31]} 54. Ne3 {[%clk 0:00:08]}  Ke5 {[%clk 0:00:31]} 55. c3 {[%clk 0:00:08]}  a5 {[%clk 0:00:28]} 56. a4 {[%clk 0:00:07]}  f4 {[%clk 0:00:27]} 57. Nc4+ {[%clk 0:00:07]}  Kd5 {[%clk 0:00:28]} 58. Nxa5 {[%clk 0:00:07]}  Kc5 {[%clk 0:00:29]} 59. Nb3+ {[%clk 0:00:07]}  Kc4 {[%clk 0:00:29]} 60. a5 {[%clk 0:00:08]}  Kxb3 {[%clk 0:00:27]} 61. a6 {[%clk 0:00:08]}  Kxc3 {[%clk 0:00:28]} 62. a7 {[%clk 0:00:08]} 1-0


[Site "https://www.chess.com"]

[Event "Titled Tuesday Blitz March 14 Early 2023"]
[White "Avazkhonov, Alikhon"]
[Black "Larina, Maria"]
[WhiteFideId "14208504"]
[BlackFideId "24113182"]
[WhiteElo "1739"]
[BlackElo "1848"]
[Result "1/2-1/2"]
[Round "07"]
[TimeControl "180+2"]
[Date "2023.03.14"]
[WhiteClock "0:00:08"]
[BlackClock "0:00:07"]

1. d4 {[%clk 0:03:00]}  f5 {[%clk 0:02:59]} 2. g3 {[%clk 0:02:57]}  Nf6 {[%clk 0:02:59]} 3. Bg2 {[%clk 0:02:58]}  g6 {[%clk 0:02:59]} 4. c4 {[%clk 0:02:58]}  Bg7 {[%clk 0:02:59]} 5. Nf3 {[%clk 0:02:58]}  O-O {[%clk 0:02:59]} 6. O-O {[%clk 0:02:59]}  d6 {[%clk 0:02:59]} 7. Nc3 {[%clk 0:02:59]}  Nc6 {[%clk 0:02:59]} 8. d5 {[%clk 0:02:58]}  Na5 {[%clk 0:02:59]} 9. Qd3 {[%clk 0:02:52]}  e5 {[%clk 0:02:59]} 10. dxe6 {[%clk 0:02:43]}  Bxe6 {[%clk 0:02:58]} 11. b3 {[%clk 0:02:44]}  Nc6 {[%clk 0:02:57]} 12. Bb2 {[%clk 0:02:41]}  Ne4 {[%clk 0:02:55]} 13. Rad1 {[%clk 0:02:35]}  Nb4 {[%clk 0:02:54]} 14. Qe3 {[%clk 0:02:31]}  Nc2 {[%clk 0:02:48]} 15. Qd3 {[%clk 0:02:19]}  Nb4 {[%clk 0:02:47]} 16. Qe3 {[%clk 0:02:18]}  Nc2 {[%clk 0:02:46]} 17. Qc1 {[%clk 0:02:08]}  Nxc3 {[%clk 0:02:32]} 18. Bxc3 {[%clk 0:02:06]}  Bxc3 {[%clk 0:02:29]} 19. Qxc2 {[%clk 0:02:07]}  Qf6 {[%clk 0:02:09]} 20. Rd3 {[%clk 0:02:05]}  Ba5 {[%clk 0:01:50]} 21. Nd4 {[%clk 0:02:04]}  c6 {[%clk 0:01:29]} 22. Nxe6 {[%clk 0:01:43]}  Qxe6 {[%clk 0:01:29]} 23. Rfd1 {[%clk 0:01:44]}  Rad8 {[%clk 0:01:25]} 24. Re3 {[%clk 0:01:42]}  Qf6 {[%clk 0:01:22]} 25. a3 {[%clk 0:01:27]}  f4 {[%clk 0:01:18]} 26. Rf3 {[%clk 0:01:25]}  g5 {[%clk 0:01:13]} 27. b4 {[%clk 0:01:20]}  Bb6 {[%clk 0:01:12]} 28. c5 {[%clk 0:01:16]}  Bc7 {[%clk 0:00:45]} 29. gxf4 {[%clk 0:00:17]}  g4 {[%clk 0:00:31]} 30. Rg3 {[%clk 0:00:12]}  Qxf4 {[%clk 0:00:30]} 31. e3 {[%clk 0:00:13]}  Qg5 {[%clk 0:00:18]} 32. Qc4+ {[%clk 0:00:11]}  d5 {[%clk 0:00:17]} 33. Qxg4 {[%clk 0:00:12]}  Qxg4 {[%clk 0:00:14]} 34. Rxg4+ {[%clk 0:00:13]}  Kh8 {[%clk 0:00:13]} 35. h4 {[%clk 0:00:10]}  Be5 {[%clk 0:00:13]} 36. f4 {[%clk 0:00:08]}  Bb2 {[%clk 0:00:13]} 37. a4 {[%clk 0:00:07]}  Bc3 {[%clk 0:00:12]} 38. b5 {[%clk 0:00:06]}  Rde8 {[%clk 0:00:11]} 39. Rd3 {[%clk 0:00:03]}  Bb4 {[%clk 0:00:10]} 40. bxc6 {[%clk 0:00:03]}  bxc6 {[%clk 0:00:10]} 41. Rb3 {[%clk 0:00:03]}  Bxc5 {[%clk 0:00:10]} 42. Kf2 {[%clk 0:00:04]}  d4 {[%clk 0:00:09]} 43. e4 {[%clk 0:00:04]}  d3+ {[%clk 0:00:09]} 44. Ke1 {[%clk 0:00:05]}  Rd8 {[%clk 0:00:06]} 45. Kd2 {[%clk 0:00:04]}  Bb6 {[%clk 0:00:06]} 46. Rxd3 {[%clk 0:00:04]}  Ba5+ {[%clk 0:00:06]} 47. Ke2 {[%clk 0:00:05]}  Rb8 {[%clk 0:00:05]} 48. Rd7 {[%clk 0:00:04]}  Rb2+ {[%clk 0:00:06]} 49. Kf1 {[%clk 0:00:04]}  Rb1+ {[%clk 0:00:06]} 50. Kf2 {[%clk 0:00:04]}  Rb2+ {[%clk 0:00:06]} 51. Kg3 {[%clk 0:00:05]}  Rb3+ {[%clk 0:00:07]} 52. Kh2 {[%clk 0:00:06]}  Re8 {[%clk 0:00:06]} 53. Rgg7 {[%clk 0:00:05]}  a6 {[%clk 0:00:05]} 54. Rxh7+ {[%clk 0:00:06]}  Kg8 {[%clk 0:00:05]} 55. Rdg7+ {[%clk 0:00:05]}  Kf8 {[%clk 0:00:05]} 56. e5 {[%clk 0:00:06]}  Bd2 {[%clk 0:00:03]} 57. Rf7+ {[%clk 0:00:04]}  Kg8 {[%clk 0:00:03]} 58. Bxc6 {[%clk 0:00:05]}  Bxf4+ {[%clk 0:00:03]} 59. Rxf4 {[%clk 0:00:06]}  Rb2+ {[%clk 0:00:03]} 60. Kg3 {[%clk 0:00:05]}  Rxe5 {[%clk 0:00:04]} 61. Rhf7 {[%clk 0:00:03]}  Re3+ {[%clk 0:00:05]} 62. Rf3 {[%clk 0:00:03]}  Ree2 {[%clk 0:00:05]} 63. Rf8+ {[%clk 0:00:03]}  Kg7 {[%clk 0:00:05]} 64. R3f7+ {[%clk 0:00:03]}  Kg6 {[%clk 0:00:06]} 65. Rf6+ {[%clk 0:00:03]}  Kg7 {[%clk 0:00:06]} 66. R8f7+ {[%clk 0:00:03]}  Kg8 {[%clk 0:00:07]} 67. Rf2 {[%clk 0:00:03]}  Re3+ {[%clk 0:00:06]} 68. R7f3 {[%clk 0:00:03]}  Re5 {[%clk 0:00:06]} 69. Rxb2 {[%clk 0:00:03]}  Re7 {[%clk 0:00:05]} 70. Rb8+ {[%clk 0:00:03]}  Kg7 {[%clk 0:00:06]} 71. Rb7 {[%clk 0:00:04]}  Rxb7 {[%clk 0:00:06]} 72. Bxb7 {[%clk 0:00:05]}  a5 {[%clk 0:00:06]} 73. Ba6 {[%clk 0:00:06]}  Kh6 {[%clk 0:00:06]} 74. Rf5 {[%clk 0:00:05]}  Kg6 {[%clk 0:00:06]} 75. Rxa5 {[%clk 0:00:06]}  Kg7 {[%clk 0:00:06]} 76. Rg5+ {[%clk 0:00:07]}  Kh6 {[%clk 0:00:07]} 77. Bd3 {[%clk 0:00:08]} 1/2-1/2


[Site "https://www.chess.com"]

[Event "Titled Tuesday Blitz March 14 Early 2023"]
[White "Mirzanurov, Bulat"]
[Black "Aung Thant Zin"]
[WhiteFideId "4184521"]
[BlackFideId "13000063"]
[WhiteElo "2019"]
[BlackElo "2278"]
[Result "1-0"]
[Round "07"]
[TimeControl "180+2"]
[Date "2023.03.14"]
[WhiteClock "0:01:23"]
[BlackClock "0:02:07"]

1. e4 {[%clk 0:03:00]}  c5 {[%clk 0:02:59]} 2. Nf3 {[%clk 0:02:59]}  Nc6 {[%clk 0:03:00]} 3. d4 {[%clk 0:02:55]}  cxd4 {[%clk 0:03:01]} 4. Nxd4 {[%clk 0:02:56]}  Nf6 {[%clk 0:03:01]} 5. Nc3 {[%clk 0:02:56]}  d6 {[%clk 0:03:01]} 6. Bg5 {[%clk 0:02:55]}  e6 {[%clk 0:03:01]} 7. Qd3 {[%clk 0:02:52]}  a6 {[%clk 0:03:02]} 8. Nxc6 {[%clk 0:02:51]}  bxc6 {[%clk 0:03:02]} 9. O-O-O {[%clk 0:02:51]}  Be7 {[%clk 0:03:00]} 10. f4 {[%clk 0:02:40]}  h6 {[%clk 0:02:59]} 11. Bh4 {[%clk 0:02:38]}  Rb8 {[%clk 0:02:56]} 12. e5 {[%clk 0:02:32]}  Nd5 {[%clk 0:02:47]} 13. Bxe7 {[%clk 0:02:25]}  Qxe7 {[%clk 0:02:47]} 14. exd6 {[%clk 0:02:20]}  Qxd6 {[%clk 0:02:47]} 15. Ne2 {[%clk 0:01:58]}  O-O {[%clk 0:02:30]} 16. c4 {[%clk 0:01:37]}  Qc5 {[%clk 0:02:29]} 17. Qd4 {[%clk 0:01:30]}  Qxd4 {[%clk 0:02:17]} 18. Nxd4 {[%clk 0:01:31]}  Ne3 {[%clk 0:02:07]} 19. Rd2 {[%clk 0:01:23]} 1-0


[Site "https://www.chess.com"]